bitfinex/quotes_BTCUSD_20250727
["timestamp","ask_amount","ask_price","bid_price","bid_amount"]
[1753627586782,1.27702597,118390.0,118380.0,1e-08]
[1753627587003,1.25022597,118390.0,118380.0,1e-08]
[1753627587905,0.92327852,118390.0,118380.0,1e-08]
[1753627588122,1.25022597,118390.0,118380.0,1e-08]
[1753627588553,1.25023321,118390.0,118380.0,1e-08]
[1753627589283,0.69204674,118390.0,118380.0,0.05187001]
[1753627589502,0.8078714,118390.0,118380.0,0.07781001]
[1753627589726,0.79996063,118390.0,118380.0,0.07781001]
[1753627589968,0.80787083,118390.0,118380.0,0.07781001]
[1753627590853,0.67175083,118390.0,118380.0,0.07781001]
[1753627591046,0.80771083,118390.0,118380.0,0.07781001]
[1753627591572,0.79976063,118390.0,118380.0,0.07781001]
[1753627591800,0.80767084,118390.0,118380.0,0.07781001]
[1753627592028,0.32582335,118390.0,118380.0,0.40475746]
[1753627592246,0.35188405,118390.0,118380.0,0.07781001]
[1753627592470,0.68397384,118390.0,118380.0,0.07781001]
[1753627593353,0.68297384,118390.0,118380.0,0.07781001]
[1753627594003,0.68197384,118390.0,118380.0,0.07781001]
[1753627596003,0.68197384,118390.0,118380.0,0.07463001]
[1753627596226,0.66615514,118390.0,118380.0,0.07463001]
[1753627596714,0.66822514,118390.0,118380.0,0.07463001]
[1753627596935,0.67143514,118390.0,118380.0,0.07463001]
[1753627597167,0.67143514,118390.0,118380.0,0.02440001]
[1753627597168,0.79774146,118390.0,118380.0,0.02440001]
[1753627597393,1.19031474,118390.0,118380.0,1e-08]
[1753627597582,1.22954538,118390.0,118380.0,1e-08]
[1753627598478,0.90259793,118390.0,118380.0,1e-08]
[1753627598713,1.22954538,118390.0,118380.0,1e-08]
[1753627599589,0.90259805,118390.0,118380.0,1e-08]
[1753627599808,1.22954565,118390.0,118380.0,1e-08]
[1753627600951,0.9025982,118390.0,118380.0,1e-08]
[1753627601168,1.22954565,118390.0,118380.0,1e-08]
[1753627603853,0.9025982,118390.0,118380.0,1e-08]
[1753627604060,1.22954565,118390.0,118380.0,1e-08]
[1753627605576,0.90259884,118390.0,118380.0,1e-08]
[1753627605808,1.22954629,118390.0,118380.0,1e-08]
[1753627607778,1.40464629,118390.0,118380.0,1e-08]
[1753627608231,1.07769884,118390.0,118380.0,1e-08]
[1753627608427,1.40464629,118390.0,118380.0,1e-08]
[1753627609430,1.40705115,118380.0,118370.0,1e-08]
[1753627609644,1.20760283,118380.0,118370.0,1e-08]
[1753627609863,0.91031538,118380.0,118370.0,1e-08]
[1753627610960,0.91131538,118380.0,118370.0,1e-08]
[1753627612299,0.91231538,118380.0,118370.0,1e-08]
[1753627613175,0.95593393,118380.0,118370.0,1e-08]
[1753627613826,0.92953393,118380.0,118370.0,1e-08]
[1753627614927,0.90443393,118380.0,118370.0,1e-08]
[1753627616233,1.18848983,118380.0,118370.0,0.07628001]
[1753627616641,0.85560756,118380.0,118370.0,0.07628001]
[1753627616905,0.81084756,118380.0,118370.0,0.07628001]
[1753627617167,1.14372242,118380.0,118370.0,0.07628001]
[1753627617379,1.18848242,118380.0,118370.0,0.07628001]
[1753627617839,1.21269212,118380.0,118370.0,0.07416001]
[1753627618520,1.21269212,118380.0,118370.0,0.04960001]
[1753627619747,1.21269212,118380.0,118370.0,1e-08]
[1753627621089,0.88574467,118380.0,118370.0,1e-08]
[1753627621313,1.21269212,118380.0,118370.0,0.07416001]
[1753627621534,1.05335212,118380.0,118370.0,0.07628001]
[1753627621792,0.31891565,118380.0,118370.0,0.07935001]
[1753627622007,0.42429898,118380.0,118370.0,0.07935001]
[1753627622468,0.76429898,118380.0,118370.0,0.07935001]
[1753627624046,1.09337643,118380.0,118370.0,0.07628001]
[1753627624279,1.21265253,118380.0,118370.0,1e-08]
[1753627625398,0.88570508,118380.0,118370.0,1e-08]
[1753627625638,1.21266417,118380.0,118370.0,1e-08]
[1753627627480,1.21266626,118380.0,118370.0,1e-08]
[1753627628556,1.2067383,118380.0,118370.0,1e-08]
[1753627628779,1.21267096,118380.0,118370.0,1e-08]
[1753627630316,0.88572351,118380.0,118370.0,1e-08]
[1753627630536,1.21267096,118380.0,118370.0,1e-08]
[1753627632488,0.88572351,118380.0,118370.0,1e-08]
[1753627632697,1.21267096,118380.0,118370.0,1e-08]
[1753627633555,0.88572351,118380.0,118370.0,1e-08]
[1753627633763,1.21267096,118380.0,118370.0,1e-08]
[1753627634398,1.2126843,118380.0,118370.0,1e-08]
[1753627637030,0.71216967,118370.0,118360.0,1e-08]
[1753627637248,0.57963367,118360.0,118350.0,0.0506]
[1753627637471,1.15605842,118360.0,118350.0,0.0506]
[1753627637681,1.18585729,118360.0,118350.0,0.0506]
[1753627637919,1.18585729,118360.0,118350.0,0.0002]
[1753627638376,0.87474281,118360.0,118350.0,0.0002]
[1753627638602,1.18585729,118360.0,118350.0,0.0002]
[1753627638822,1.20762741,118360.0,118350.0,0.0002]
[1753627639067,1.18685729,118360.0,118350.0,0.0002]
[1753627639698,1.2165445,118360.0,118350.0,0.0002]
[1753627640457,1.2175445,118360.0,118350.0,0.0506]
[1753627640664,1.24270017,118360.0,118350.0,0.0506]
[1753627642332,1.24268892,118360.0,118350.0,0.0506]
[1753627643433,1.24268892,118360.0,118350.0,0.0002]
[1753627643930,1.62163637,118360.0,118350.0,0.0002]
[1753627644412,1.29468892,118360.0,118350.0,0.0002]
[1753627644664,1.24268892,118360.0,118350.0,0.0002]
[1753627644903,1.24268892,118360.0,118350.0,0.0536]
[1753627645156,1.07981083,118360.0,118350.0,0.0798]
[1753627645400,0.87196534,118360.0,118350.0,0.0798]
[1753627645650,0.78460065,118360.0,118350.0,0.08278]
[1753627646130,0.76878082,118360.0,118350.0,0.08278]
[1753627647523,0.42878082,118360.0,118350.0,0.40972745]
[1753627647754,0.4372294,118360.0,118350.0,0.57871773]
[1753627648026,0.2176721,118360.0,118350.0,0.57871773]
[1753627648283,0.19218419,118360.0,118350.0,0.66362948]
[1753627648538,0.70960877,118360.0,118350.0,0.65517997]
[1753627648790,0.70960877,118360.0,118350.0,0.32823252]
[1753627649072,0.70016062,118360.0,118350.0,0.65517997]
[1753627649299,0.69171225,118360.0,118350.0,0.25177028]
[1753627649550,0.69171225,118360.0,118350.0,0.57871773]
[1753627650288,0.55667225,118360.0,118350.0,0.57871773]
[1753627650560,0.55567225,118360.0,118350.0,0.57871773]
[1753627651950,0.63170097,118360.0,118350.0,0.08278]
[1753627652981,0.76662097,118360.0,118350.0,0.08278]
[1753627653206,0.76870097,118360.0,118350.0,0.0798]
[1753627653661,1.09870842,118360.0,118350.0,0.07783]
[1753627653883,1.12256842,118360.0,118350.0,0.07783]
[1753627654579,0.79562097,118360.0,118350.0,0.07783]
[1753627655029,0.77176097,118360.0,118350.0,0.0798]
[1753627655734,0.77153708,118360.0,118350.0,0.088078]
[1753627657146,1.12234453,118360.0,118350.0,0.07783]
[1753627657580,0.79539708,118360.0,118350.0,0.07783]
[1753627658497,0.77153708,118360.0,118350.0,0.07783]
[1753627660476,0.77153708,118360.0,118350.0,0.0798]
[1753627665035,0.54699978,118360.0,118350.0,0.40972745]
[1753627665287,0.07181731,118360.0,118350.0,0.65433462]
[1753627665520,0.23234559,118360.0,118350.0,0.63743589]
[1753627665704,0.23234559,118360.0,118350.0,0.57871773]
[1753627665956,0.23234559,118360.0,118350.0,0.58716724]
[1753627666174,0.22129715,118360.0,118350.0,0.58816724]
[1753627666390,0.21971217,118360.0,118350.0,0.59661668]
[1753627666610,0.21971217,118360.0,118350.0,0.60506605]
[1753627666959,0.21971217,118360.0,118350.0,0.68954335]
[1753627667181,0.21971217,118360.0,118350.0,0.68309398]
[1753627667409,0.21971217,118360.0,118350.0,0.69154327]
[1753627667633,0.0338383,118360.0,118350.0,0.71368143]
[1753627668771,0.04228674,118360.0,118350.0,0.69678327]
[1753627668987,0.05073539,118360.0,118350.0,0.70523242]
[1753627669217,0.05073539,118360.0,118350.0,0.69678327]
[1753627669589,0.05073539,118360.0,118350.0,0.71368164]
[1753627669954,0.05918419,118360.0,118350.0,0.70523249]
[1753627671539,0.05918419,118360.0,118350.0,0.71368164]
[1753627671748,0.05918419,118360.0,118350.0,0.70523249]
[1753627671982,0.05918419,118360.0,118350.0,1.03217994]
[1753627672218,0.19427236,118390.0,118380.0,0.0527]
[1753627672450,0.18587453,118390.0,118380.0,0.73558724]
[1753627672679,0.18795453,118390.0,118380.0,0.10243234]
[1753627672910,0.19101453,118390.0,118380.0,0.23671234]
[1753627673142,0.19101453,118390.0,118380.0,0.07693]
[1753627673415,0.96629928,118390.0,118380.0,0.0263]
[1753627674331,0.63935183,118390.0,118380.0,0.0263]
[1753627674579,0.77359183,118390.0,118380.0,0.0263]
[1753627674805,1.10053928,118390.0,118380.0,0.0263]
[1753627675244,0.77359183,118390.0,118380.0,0.0263]
[1753627675470,0.79897183,118390.0,118380.0,0.0263]
[1753627675939,0.79897183,118390.0,118380.0,0.0527]
[1753627680352,0.64069183,118390.0,118380.0,0.0527]
[1753627680584,0.66565183,118390.0,118380.0,0.0527]
[1753627681040,0.66565183,118390.0,118380.0,0.07699]
[1753627681529,0.66565183,118390.0,118380.0,0.0527]
[1753627682240,0.66565183,118390.0,118380.0,0.07699]
[1753627682739,0.55125453,118390.0,118380.0,0.26931796]
[1753627682981,0.55970061,118390.0,118380.0,0.59935541]
[1753627683206,0.53432061,118390.0,118380.0,0.59935541]
[1753627683431,0.35694092,118390.0,118380.0,0.60780264]
[1753627683707,0.01694092,118390.0,118380.0,0.60780271]
[1753627683943,4.84e-05,118390.0,118380.0,0.63314403]
[1753627684166,0.01694078,118390.0,118380.0,0.7669841]
[1753627684402,0.01694078,118390.0,118380.0,0.75853709]
[1753627684638,0.19432047,118390.0,118380.0,0.73319541]
[1753627684834,0.18587439,118390.0,118380.0,0.73319541]
[1753627685102,0.01694121,118390.0,118380.0,0.74164278]
[1753627685318,0.02538786,118390.0,118380.0,0.74164278]
[1753627685542,0.19432104,118390.0,118380.0,0.73319541]
[1753627685765,0.19432104,118390.0,118380.0,0.74164278]
[1753627685990,0.02538786,118390.0,118380.0,0.75009008]
[1753627686210,0.00849455,118390.0,118380.0,0.76698417]
[1753627686434,0.01694085,118390.0,118380.0,0.77543111]
[1753627686655,0.00849455,118390.0,118380.0,0.75108979]
[1753627686879,0.01694078,118390.0,118380.0,0.75953673]
[1753627687130,0.02538715,118390.0,118380.0,0.75953673]
[1753627687385,0.02538715,118390.0,118380.0,0.7595368]
[1753627687686,0.02538715,118390.0,118380.0,0.75108979]
[1753627687948,0.02538715,118390.0,118380.0,0.7595368]
[1753627688666,0.19432104,118390.0,118380.0,0.73419541]
[1753627689116,0.19432104,118390.0,118380.0,0.40824796]
[1753627689336,0.19432104,118390.0,118380.0,0.73519541]
[1753627690892,0.02538779,118390.0,118380.0,0.74364278]
[1753627691118,0.02538779,118390.0,118380.0,0.75209008]
[1753627691587,0.03383444,118390.0,118380.0,0.75209008]
[1753627692263,0.03383444,118390.0,118380.0,0.76053731]
[1753627692493,0.03383444,118390.0,118380.0,0.75209008]
[1753627692745,0.20276762,118390.0,118380.0,0.74364278]
[1753627693743,0.18587481,118390.0,118380.0,0.40515796]
[1753627693977,0.18587481,118390.0,118380.0,0.73210541]
[1753627694804,0.01694135,118390.0,118380.0,0.73519541]
[1753627695024,0.01694135,118390.0,118380.0,0.74364264]
[1753627695216,0.02538743,118390.0,118380.0,0.75208986]
[1753627695439,0.03383408,118390.0,118380.0,0.74364271]
[1753627695616,0.20276726,118390.0,118380.0,0.74364278]
[1753627695834,0.20276726,118390.0,118380.0,0.40824796]
[1753627696033,0.20276726,118390.0,118380.0,0.74364278]
[1753627696234,0.20276726,118390.0,118380.0,0.73519541]
[1753627696480,0.19432111,118390.0,118380.0,0.74364278]
[1753627696681,0.0253875,118390.0,118380.0,0.76053716]
[1753627696819,0.0253875,118390.0,118380.0,0.75209001]
[1753627697218,0.19432068,118390.0,118380.0,0.74364278]
[1753627697859,0.19432068,118390.0,118380.0,0.40824796]
[1753627698088,0.19432068,118390.0,118380.0,0.73519541]
[1753627699384,0.19432068,118390.0,118380.0,0.74364278]
[1753627699603,0.19432068,118390.0,118380.0,0.40824796]
[1753627699827,0.19432068,118390.0,118380.0,0.73519541]
[1753627700038,0.19432068,118390.0,118380.0,0.73210541]
[1753627700302,0.02538743,118390.0,118380.0,0.76053716]
[1753627700528,0.02538743,118390.0,118380.0,0.76053723]
[1753627700742,0.01694092,118390.0,118380.0,0.76898424]
[1753627700954,0.02538743,118390.0,118380.0,0.76053723]
[1753627701638,0.01694092,118390.0,118380.0,0.76898431]
[1753627701854,0.02538736,118390.0,118380.0,0.76898431]
[1753627702072,0.03383387,118390.0,118380.0,0.76898431]
[1753627702289,0.02538736,118390.0,118380.0,0.76898431]
[1753627702732,0.03383387,118390.0,118380.0,0.76053723]
[1753627703176,0.04228052,118390.0,118380.0,0.76053731]
[1753627703403,0.04228052,118390.0,118380.0,0.74364264]
[1753627703624,0.20276705,118390.0,118380.0,0.73519541]
[1753627703846,0.04228052,118390.0,118380.0,0.74364264]
[1753627704335,0.04228045,118390.0,118380.0,0.74364264]
[1753627704988,0.04228095,118390.0,118380.0,0.74364264]
[1753627705204,0.04228095,118390.0,118380.0,0.74364271]
[1753627705718,0.02538772,118390.0,118380.0,0.74364271]
[1753627706216,0.02538772,118390.0,118380.0,0.75208986]
[1753627706477,0.0253875,118390.0,118380.0,0.75208986]
[1753627707006,0.0338338,118390.0,118380.0,0.75208994]
[1753627708119,0.0338338,118390.0,118380.0,0.76053709]
[1753627708340,0.0338338,118390.0,118380.0,0.75208994]
[1753627708827,0.0338338,118390.0,118380.0,0.76053709]
[1753627709097,0.0338338,118390.0,118380.0,0.75208994]
[1753627709412,4.84e-05,118390.0,118380.0,0.77422389]
[1753627710382,0.00849448,118390.0,118380.0,0.77422389]
[1753627710626,0.01694071,118390.0,118380.0,0.77422389]
[1753627711123,0.00849448,118390.0,118380.0,0.77422389]
[1753627712147,4.84e-05,118390.0,118380.0,0.77422389]
[1753627712606,0.00849441,118390.0,118380.0,0.77422389]
[1753627713099,4.84e-05,118390.0,118380.0,0.77422389]
[1753627713816,4.84e-05,118390.0,118380.0,0.85870119]
[1753627715873,4.84e-05,118390.0,118380.0,0.85670119]
[1753627716087,4.84e-05,118390.0,118380.0,0.85870119]
[1753627716314,4.84e-05,118390.0,118380.0,0.85970119]
[1753627718114,0.00849441,118390.0,118380.0,0.85970119]
[1753627718739,0.01694064,118390.0,118380.0,0.72586119]
[1753627718989,0.21545439,118390.0,118380.0,0.08216051]
[1753627719216,0.21545439,118390.0,118380.0,0.16206]
[1753627719439,0.21545439,118390.0,118380.0,0.0293]
[1753627719713,0.21545439,118390.0,118380.0,0.13576]
[1753627721725,0.21545439,118390.0,118380.0,0.003]
[1753627721946,0.21545439,118390.0,118380.0,0.13576]
[1753627722823,0.24165439,118390.0,118380.0,0.003]
[1753627723048,0.26675439,118390.0,118380.0,0.13568]
[1753627723543,0.27534179,118390.0,118380.0,0.13568]
[1753627723984,0.26675439,118390.0,118380.0,0.13568]
[1753627724208,0.26675439,118390.0,118380.0,0.003]
[1753627724865,0.21545439,118390.0,118380.0,0.003]
[1753627725735,0.21545439,118390.0,118380.0,0.32994745]
[1753627725957,0.21545439,118390.0,118380.0,0.39721692]
[1753627726175,0.19088439,118390.0,118380.0,0.64390437]
[1753627726386,0.19088474,118390.0,118380.0,0.64390437]
[1753627727865,0.18243823,118390.0,118380.0,0.64390437]
[1753627728957,0.18243823,118390.0,118380.0,0.47495692]
[1753627729174,0.20700823,118390.0,118380.0,0.14603947]
[1753627729408,0.20700823,118390.0,118380.0,0.47298692]
[1753627730439,0.58243823,118390.0,118380.0,0.47495692]
[1753627732921,0.60700823,118390.0,118380.0,0.47495692]
[1753627733334,0.60700823,118390.0,118380.0,0.14800947]
[1753627733515,0.60700823,118390.0,118380.0,0.47495692]
[1753627733933,0.58243823,118390.0,118380.0,0.47495692]
[1753627735266,0.57943823,118390.0,118380.0,0.47495692]
[1753627735493,0.58265823,118390.0,118380.0,0.47495692]
[1753627736436,0.58265823,118390.0,118380.0,0.08074]
[1753627736646,0.58265823,118390.0,118380.0,0.40768745]
[1753627737908,0.58265823,118390.0,118380.0,0.08074]
[1753627738127,0.58265823,118390.0,118380.0,0.40768745]
[1753627740329,0.58265823,118390.0,118380.0,0.08074]
[1753627740536,0.58265823,118390.0,118380.0,0.40768745]
[1753627743049,0.58265823,118390.0,118380.0,0.4828254]
[1753627743207,0.58265823,118390.0,118380.0,0.65177285]
[1753627743426,0.58265823,118390.0,118380.0,0.4828254]
[1753627746724,0.58265823,118390.0,118380.0,0.65177285]
[1753627746903,0.58265823,118390.0,118380.0,0.4828254]
[1753627748178,0.17742823,118390.0,118380.0,0.4828254]
[1753627748404,0.18587382,118390.0,118380.0,0.65487285]
[1753627748634,0.02538701,118390.0,118380.0,0.69390132]
[1753627748865,0.01694064,118390.0,118380.0,0.69390132]
[1753627749102,0.02538694,118390.0,118380.0,0.69390132]
[1753627749341,0.03383338,118390.0,118380.0,0.69390132]
[1753627749572,0.03383331,118390.0,118380.0,0.69390132]
[1753627750295,0.04227989,118390.0,118380.0,0.68545445]
[1753627750491,0.03383388,118390.0,118380.0,0.68545445]
[1753627750755,0.03383388,118390.0,118380.0,0.69390146]
[1753627751426,0.03383388,118390.0,118380.0,0.7023484]
[1753627751692,0.0253873,118390.0,118380.0,0.7023484]
[1753627751929,0.0253873,118390.0,118380.0,0.7023479]
[1753627753147,0.04228039,118390.0,118380.0,0.35850664]
[1753627753380,0.04228039,118390.0,118380.0,0.67700708]
[1753627753607,0.01694093,118390.0,118380.0,0.69390103]
[1753627753811,0.02538737,118390.0,118380.0,0.7023479]
[1753627754038,0.03383388,118390.0,118380.0,0.69390103]
[1753627754299,0.01694093,118390.0,118380.0,0.7023479]
[1753627755029,0.00849441,118390.0,118380.0,0.7023479]
[1753627755255,0.01694049,118390.0,118380.0,0.7023479]
[1753627755517,0.00849441,118390.0,118380.0,0.7023479]
[1753627755739,0.01694056,118390.0,118380.0,0.7023479]
[1753627757442,0.03383337,118390.0,118380.0,0.7023479]
[1753627757871,0.03383337,118390.0,118380.0,0.8341079]
[1753627758143,0.03383337,118390.0,118380.0,0.82566096]
[1753627759261,0.03383323,118390.0,118380.0,0.82566096]
[1753627759480,0.04227967,118390.0,118380.0,0.82566096]
[1753627759692,0.04228017,118390.0,118380.0,0.81721409]
[1753627759904,0.04228017,118390.0,118380.0,0.82566103]
[1753627760127,0.025387,118390.0,118380.0,0.8341079]
[1753627760358,0.03383344,118390.0,118380.0,0.8341079]
[1753627762339,0.04227995,118390.0,118380.0,0.8341079]
[1753627762559,0.03383344,118390.0,118380.0,0.8341079]
[1753627764769,0.04228002,118390.0,118380.0,0.82566103]
[1753627764979,0.04227995,118390.0,118380.0,0.8310079]
[1753627765199,0.04228052,118390.0,118380.0,0.81411409]
[1753627765420,0.03383387,118390.0,118380.0,0.82256096]
[1753627765639,0.03383387,118390.0,118380.0,0.49561351]
[1753627765862,0.03383387,118390.0,118380.0,0.81411409]
[1753627766097,0.19432118,118390.0,118380.0,0.78877285]
[1753627766304,0.01694135,118390.0,118380.0,0.81411439]
[1753627766745,0.02538793,118390.0,118380.0,0.82256133]
[1753627766963,0.01694135,118390.0,118380.0,0.82256133]
[1753627767617,0.01694135,118390.0,118380.0,0.8310082]
[1753627767827,0.01694135,118390.0,118380.0,0.82256133]
[1753627768897,0.01694078,118390.0,118380.0,1.23156202]
[1753627769103,0.00849455,118390.0,118380.0,1.24000889]
[1753627769317,0.00849455,118390.0,118380.0,1.23156202]
[1753627769530,0.00849455,118390.0,118380.0,1.24000889]
[1753627769818,0.00849455,118390.0,118380.0,0.50406075]
[1753627770057,0.00849455,118390.0,118380.0,1.24000889]
[1753627770488,0.01694078,118390.0,118380.0,1.23156202]
[1753627770933,0.01694078,118390.0,118380.0,1.22311508]
[1753627771154,0.01694078,118390.0,118380.0,1.23156202]
[1753627772238,0.01694078,118390.0,118380.0,1.24000889]
[1753627772453,0.01694078,118390.0,118380.0,1.23156202]
[1753627772683,0.01694078,118390.0,118380.0,1.22311508]
[1753627772922,0.01694078,118390.0,118380.0,1.23156202]
[1753627773137,0.00849455,118390.0,118380.0,1.23156202]
[1753627773345,0.00849455,118390.0,118380.0,1.24000889]
[1753627776942,0.00849441,118390.0,118380.0,1.24000889]
[1753627777527,4.84e-05,118390.0,118380.0,1.24000889]
[1753627777798,4.84e-05,118390.0,118380.0,1.24307889]
[1753627779574,0.00849441,118390.0,118380.0,1.24307889]
[1753627779795,0.01694056,118390.0,118380.0,1.24000889]
[1753627781264,0.01694056,118390.0,118380.0,0.50406075]
[1753627781489,0.01694056,118390.0,118380.0,1.24000889]
[1753627781728,0.00849441,118390.0,118380.0,1.24000889]
[1753627781973,0.00849448,118390.0,118380.0,1.24000889]
[1753627782215,4.84e-05,118390.0,118380.0,1.32755619]
[1753627782446,4.84e-05,118390.0,118380.0,1.71297928]
[1753627783585,4.84e-05,118390.0,118380.0,1.71197928]
[1753627784052,4.84e-05,118390.0,118380.0,1.71597928]
[1753627784286,4.84e-05,118390.0,118380.0,1.71397928]
[1753627784522,4.84e-05,118390.0,118380.0,2.05397928]
[1753627784523,1e-08,118390.0,118380.0,2.05397928]
[1753627784767,1e-08,118390.0,118380.0,3.59313627]
[1753627785049,1e-08,118390.0,118380.0,3.14588008]
[1753627785493,1e-08,118390.0,118380.0,3.09371608]
[1753627785723,1e-08,118390.0,118380.0,2.98511408]
[1753627785951,1e-08,118390.0,118380.0,2.98111408]
[1753627786381,1e-08,118390.0,118380.0,2.94649608]
[1753627786823,1e-08,118390.0,118380.0,2.07211408]
[1753627788545,1e-08,118390.0,118380.0,2.07461408]
[1753627790523,1e-08,118390.0,118380.0,2.12531408]
[1753627791849,1e-08,118390.0,118380.0,1.71092308]
[1753627792079,1e-08,118390.0,118380.0,3.08515308]
[1753627792776,1e-08,118390.0,118380.0,2.91696508]
[1753627794751,1e-08,118390.0,118380.0,2.90256908]
[1753627803589,1e-08,118390.0,118380.0,1.71092308]
[1753627804034,1e-08,118390.0,118380.0,3.23692508]
[1753627807071,1e-08,118390.0,118380.0,3.6864025]
[1753627815796,1e-08,118390.0,118380.0,3.6692215]
[1753627817367,1e-08,118390.0,118380.0,3.6188855]
[1753627819217,1e-08,118390.0,118380.0,2.9875395]
[1753627820677,1e-08,118390.0,118380.0,3.0102795]
[1753627826851,1e-08,118390.0,118380.0,4.0037785]
[1753627827478,1e-08,118390.0,118380.0,3.9931545]
[1753627828552,1e-08,118390.0,118380.0,3.9630515]
[1753627829235,1e-08,118390.0,118380.0,3.2938245]
[1753627834763,1e-08,118390.0,118380.0,3.8834595]
[1753627835290,1e-08,118390.0,118380.0,3.7076175]
[1753627835509,1e-08,118390.0,118380.0,3.3272435]
[1753627835735,1e-08,118390.0,118380.0,3.3241735]
[1753627836669,1e-08,118390.0,118380.0,3.2254435]
[1753627838277,1e-08,118390.0,118380.0,2.12230006]
[1753627838533,1e-08,118390.0,118380.0,3.2254435]
[1753627840217,1e-08,118390.0,118380.0,3.0219225]
[1753627844067,1e-08,118390.0,118380.0,2.1800705]
[1753627844272,1e-08,118390.0,118380.0,3.6467725]
[1753627845531,1e-08,118390.0,118380.0,3.5647245]
[1753627846191,1e-08,118390.0,118380.0,3.59021182]
[1753627848716,1e-08,118390.0,118380.0,3.5727628]
[1753627849250,1e-08,118390.0,118380.0,3.59021182]
[1753627852355,1e-08,118390.0,118380.0,3.5727628]
[1753627854865,1e-08,118390.0,118380.0,3.59021182]
[1753627856190,1e-08,118390.0,118380.0,2.20555782]
[1753627856421,1e-08,118390.0,118380.0,4.03190882]
[1753627856649,1e-08,118390.0,118380.0,4.02036482]
[1753627856880,1e-08,118390.0,118380.0,4.00320382]
[1753627857103,1e-08,118390.0,118380.0,3.96016382]
[1753627857347,1e-08,118390.0,118380.0,3.70496582]
[1753627857809,1e-08,118390.0,118380.0,3.54105682]
[1753627858273,1e-08,118390.0,118380.0,3.53361682]
[1753627858501,1e-08,118390.0,118380.0,3.50197082]
[1753627859130,1e-08,118390.0,118380.0,3.41696782]
[1753627859880,1e-08,118390.0,118380.0,3.30352882]
[1753627862729,1e-08,118390.0,118380.0,2.98830882]
[1753627864766,1e-08,118390.0,118380.0,3.62963682]
[1753627864977,1e-08,118390.0,118380.0,3.44092382]
[1753627865462,1e-08,118390.0,118380.0,1.77334538]
[1753627865671,1e-08,118390.0,118380.0,2.87648882]
[1753627866158,1e-08,118390.0,118380.0,2.82754082]
[1753627866381,0.02829001,118390.0,118380.0,2.66098282]
[1753627866638,0.02829001,118390.0,118380.0,2.50593382]
[1753627867356,0.02829001,118390.0,118380.0,2.60680982]
[1753627868067,0.02829001,118390.0,118380.0,2.55680983]
[1753627868304,0.02829001,118390.0,118380.0,2.60680982]
[1753627868543,0.02829001,118390.0,118380.0,2.62228182]
[1753627869205,0.02829001,118390.0,118380.0,2.44907482]
[1753627869475,0.02829001,118390.0,118380.0,2.45069082]
[1753627869699,0.02829001,118390.0,118380.0,2.47382082]
[1753627869922,0.02829001,118390.0,118380.0,2.38068383]
[1753627870163,0.02829001,118390.0,118380.0,2.43068382]
[1753627870390,0.02829001,118390.0,118380.0,2.57797482]
[1753627871101,0.08089001,118390.0,118380.0,0.92063439]
[1753627871352,0.08089001,118390.0,118380.0,1.24815985]
[1753627871589,0.08089001,118390.0,118380.0,1.61587433]
[1753627872276,0.08089001,118390.0,118380.0,1.62808335]
[1753627872507,0.08089001,118390.0,118380.0,1.63332335]
[1753627873997,0.052,118400.0,118390.0,0.2169613]
[1753627874227,0.02748,118400.0,118390.0,1.25238486]
[1753627874444,0.02748,118400.0,118390.0,1.27551486]
[1753627874938,0.02748,118400.0,118390.0,0.5400859]
[1753627875153,0.02748,118400.0,118390.0,1.27551486]
[1753627875626,0.02748,118400.0,118390.0,1.27851486]
[1753627875844,0.05398,118400.0,118390.0,1.28251486]
[1753627876298,0.05398,118400.0,118390.0,0.91480038]
[1753627876540,0.05398,118400.0,118390.0,1.28251486]
[1753627876950,0.02748,118400.0,118390.0,1.28251486]
[1753627878105,0.02748,118400.0,118390.0,1.28767486]
[1753627878771,0.02748,118400.0,118390.0,0.5522459]
[1753627878998,0.02748,118400.0,118390.0,0.91996038]
[1753627879440,0.02748,118400.0,118390.0,0.91480038]
[1753627879659,0.05158,118400.0,118390.0,0.91480038]
[1753627880515,0.07467,118400.0,118390.0,0.91480038]
[1753627882075,0.05158,118400.0,118390.0,0.91480038]
[1753627884049,0.05158,118400.0,118390.0,0.5470859]
[1753627884262,0.05158,118400.0,118390.0,0.91480038]
[1753627886539,0.07474,118400.0,118390.0,0.89167038]
[1753627887415,0.07474,118400.0,118390.0,0.91657038]
[1753627887633,0.05158,118400.0,118390.0,0.91657038]
[1753627888770,0.00198,118400.0,118390.0,1.28636486]
[1753627888989,0.07456,118410.0,118400.0,0.19425588]
[1753627889209,0.07657,118410.0,118400.0,1.22971944]
[1753627890516,0.07657,118410.0,118400.0,1.25461944]
[1753627890740,0.05341,118410.0,118400.0,1.25761944]
[1753627891401,0.05341,118410.0,118400.0,1.25961944]
[1753627892612,0.05341,118410.0,118400.0,1.26485944]
[1753627894115,0.05341,118410.0,118400.0,1.26998944]
[1753627894345,0.05034849,118420.0,118410.0,0.19947948]
[1753627894574,0.05034849,118420.0,118410.0,1.23686304]
[1753627894802,0.05034849,118420.0,118410.0,1.26481304]
[1753627895470,0.05235849,118420.0,118410.0,0.52938408]
[1753627895705,0.05235849,118420.0,118410.0,1.273275]
[1753627895933,0.05235849,118420.0,118410.0,1.268145]
[1753627896425,0.05235849,118420.0,118410.0,1.270145]
[1753627897515,0.05235849,118420.0,118410.0,1.271145]
[1753627898870,0.05235849,118420.0,118410.0,0.86259255]
[1753627901118,0.05235849,118420.0,118410.0,0.86772255]
[1753627907394,0.05235849,118420.0,118410.0,0.85926059]
[1753627907395,0.02424849,118420.0,118410.0,0.85926059]
[1753627907849,4.849e-05,118420.0,118410.0,0.85926059]
[1753627908542,4.849e-05,118420.0,118410.0,0.88511]
[1753627909014,4.849e-05,118420.0,118410.0,0.55823349]
[1753627909231,4.849e-05,118420.0,118410.0,0.88511]
[1753627909671,4.849e-05,118420.0,118410.0,0.88477049]
[1753627909889,0.02474849,118420.0,118410.0,0.88477049]
[1753627916915,4.849e-05,118420.0,118410.0,0.88477049]
[1753627920954,4.849e-05,118420.0,118410.0,1.29338174]
[1753627922129,4.849e-05,118420.0,118410.0,1.34548174]
[1753627922364,4.849e-05,118420.0,118410.0,1.97908564]
[1753627922594,4.849e-05,118420.0,118410.0,2.34518564]
[1753627923694,4.849e-05,118420.0,118410.0,2.34318564]
[1753627923956,4.849e-05,118420.0,118410.0,2.34218564]
[1753627924192,4.849e-05,118420.0,118410.0,2.34518564]
[1753627924718,1e-08,118420.0,118410.0,2.34468564]
[1753627924969,1e-08,118420.0,118410.0,1.8977831]
[1753627925211,1e-08,118420.0,118410.0,1.9007831]
[1753627927526,1e-08,118420.0,118410.0,1.6262721]
[1753627928006,1e-08,118420.0,118410.0,4.1237351]
[1753627928458,1e-08,118420.0,118410.0,3.76063555]
[1753627928686,1e-08,118420.0,118410.0,3.74948355]
[1753627928911,1e-08,118420.0,118410.0,3.72003355]
[1753627929780,1e-08,118420.0,118410.0,3.74539155]